fUSD/lending_fUSD_20240113
["ID","MTS","AMOUNT","RATE_DAILY","PERIOD"]
[311452136,1705138273755,-503.56424176,0.00027671,2]
[311452137,1705138273765,-1806.4,0.00027671,2]
[311452138,1705138273774,-500.0,0.00027671,2]
[311452139,1705138273784,-2239.81,0.00027671,5]
[311452140,1705138273793,-500.0,0.00027671,2]
[311452141,1705138273803,-500.0,0.00027671,2]
[311452142,1705138273813,-500.0,0.00027671,2]
[311452143,1705138273823,-500.0,0.00027671,2]
[311452144,1705138273832,-500.0,0.00027671,2]
[311452145,1705138273842,-500.0,0.00027671,2]
[311452146,1705138273852,-500.0,0.00027671,2]
[311452147,1705138273862,-644.8,0.00027671,2]
[311452148,1705138273872,-500.0,0.00027671,2]
[311452149,1705138273881,-500.0,0.00027671,2]
[311452150,1705138273891,-500.0,0.00027671,2]
[311452151,1705138273901,-1069.46,0.00027671,2]
[311452152,1705138273912,-1236.9,0.00027671,2]
[311452153,1705138273922,-500.0,0.00027671,2]
[311452154,1705138273931,-500.0,0.00027671,2]
[311452155,1705138273942,-500.0,0.00027671,2]
[311452156,1705138273952,-502.62755103,0.00027671,2]
[311452157,1705138273961,-881.57,0.00027671,2]
[311452158,1705138273971,-500.0,0.00027671,2]
[311452159,1705138273981,-1625.97,0.00027671,2]
[311452160,1705138273991,-500.0,0.00027671,2]
[311452161,1705138274000,-500.0,0.00027671,2]
[311452162,1705138274010,-500.0,0.00027671,2]
[311452163,1705138274019,-500.0,0.00027671,2]
[311452164,1705138274029,-500.0,0.00027671,2]
[311452165,1705138274039,-500.0,0.00027671,2]
[311452166,1705138274049,-500.0,0.00027671,2]
[311452167,1705138274059,-500.0,0.00027671,2]
[311452168,1705138274069,-500.0,0.00027671,2]
[311452169,1705138274078,-500.0,0.00027671,2]
[311452170,1705138274088,-500.0,0.00027671,2]
[311452171,1705138274098,-500.0,0.00027671,2]
[311452172,1705138274108,-500.0,0.00027671,2]
[311452173,1705138274118,-500.0,0.00027671,2]
[311452174,1705138274128,-500.0,0.00027671,2]
[311452175,1705138274138,-500.0,0.00027671,2]
[311452176,1705138274147,-550.3,0.00027671,2]
[311452177,1705138274157,-500.0,0.00027671,2]
[311452178,1705138274168,-2163.66,0.00027671,2]
[311452179,1705138274178,-552.62,0.00027671,2]
[311452180,1705138274188,-548.77,0.00027671,2]
[311452181,1705138274198,-728.37,0.00027671,2]
[311452182,1705138274208,-500.0,0.00027671,2]
[311452183,1705138274217,-500.0,0.00027671,2]
[311452184,1705138274227,-500.0,0.00027671,2]
[311452185,1705138274237,-502.36996732,0.00027671,2]
[311452186,1705138274247,-500.0,0.00027671,2]
[311452187,1705138274257,-3437.51,0.00027671,2]
[311452188,1705138274267,-500.0,0.00027671,2]
[311452189,1705138274277,-500.0,0.00027671,2]
[311452190,1705138274287,-500.0,0.00027671,2]
[311452191,1705138274297,-500.0,0.00027671,2]
[311452192,1705138274306,-500.0,0.00027671,2]
[311452193,1705138274317,-500.0,0.00027671,2]
[311452194,1705138274326,-500.0,0.00027671,2]
[311452195,1705138274337,-500.0,0.00027671,2]
[311452196,1705138274346,-500.0,0.00027671,2]
[311452197,1705138274356,-902.21,0.00027671,2]
[311452198,1705138274366,-500.0,0.00027671,2]
[311452199,1705138274376,-500.0,0.00027671,2]
[311452200,1705138274387,-578.89,0.00027671,2]
[311452201,1705138274396,-500.0,0.00027671,2]
[311452202,1705138274406,-512.74,0.00027671,2]
[311452203,1705138274417,-1511.74,0.00027671,2]
[311452204,1705138274427,-500.0,0.00027671,2]
[311452205,1705138274437,-4968.27,0.00027671,2]
[311452206,1705138274447,-500.0,0.00027671,2]
[311452207,1705138274457,-510.01,0.00027671,2]
[311452208,1705138274468,-500.0,0.00027671,2]
[311452209,1705138274478,-547.13,0.00027671,2]
[311452210,1705138274488,-500.0,0.00027671,2]
[311452211,1705138274499,-983.01,0.00027671,2]
[311452212,1705138274508,-500.0,0.00027671,2]
[311452213,1705138274518,-500.0,0.00027671,2]
[311452214,1705138274529,-500.0,0.00027671,2]
[311452215,1705138274539,-500.0,0.00027671,15]
[311452216,1705138274550,-500.0,0.00027671,2]
[311452217,1705138274560,-500.0,0.00027671,2]
[311452218,1705138274570,-500.0,0.00027671,2]
[311452219,1705138274580,-500.0,0.00027671,2]
[311452220,1705138274590,-500.0,0.00027671,2]
[311452221,1705138274599,-1760.82,0.00027671,2]
[311452222,1705138274610,-500.0,0.00027671,2]
[311452223,1705138274619,-500.0,0.00027671,2]
[311452224,1705138274629,-500.0,0.00027671,2]
[311452225,1705138274639,-524.88,0.00027671,2]
[311452226,1705138274649,-500.0,0.00027671,2]
[311452227,1705138274659,-596.45,0.00027671,2]
[311452228,1705138274669,-1388.65,0.00027671,2]
[311452229,1705138274680,-500.0,0.00027671,2]
[311452230,1705138274690,-501.46994044,0.00027671,2]
[311452231,1705138274700,-500.0,0.00027671,2]
[311452232,1705138274710,-500.0,0.00027671,2]
[311452233,1705138274721,-500.0,0.00027671,2]
[311452234,1705138274733,-6115.51,0.00027671,2]
[311452235,1705138274743,-903.97,0.00027671,2]
[311452236,1705138274753,-17007.8,0.00027671,2]
[311452237,1705138274763,-500.0,0.00027671,2]
[311452238,1705138274773,-500.0,0.00027671,2]
[311452239,1705138274784,-2373.62,0.00027671,2]
[311452240,1705138274794,-500.0,0.00027671,2]
[311452241,1705138274804,-500.0,0.00027671,2]
[311452242,1705138274814,-500.0,0.00027671,2]
[311452243,1705138274824,-578.14169789,0.00027671,2]
[311452244,1705138274834,-500.0,0.00027671,2]
[311452245,1705138274844,-506.27633722,0.00027671,2]
[311452246,1705138274854,-500.0,0.00027671,2]
[311452247,1705138274864,-500.0,0.00027671,2]
[311452248,1705138274874,-500.0,0.00027671,2]
[311452249,1705138274884,-500.0,0.00027671,2]
[311452250,1705138274894,-500.0,0.00027671,2]
[311452251,1705138274903,-500.0,0.00027671,2]
[311452252,1705138274913,-2089.98,0.00027671,2]
[311452253,1705138274923,-500.0,0.00027671,2]
[311452254,1705138274933,-507.09045297,0.00027671,2]
[311452255,1705138274943,-500.0,0.00027671,2]
[311452256,1705138274952,-500.0,0.00027671,2]
[311452257,1705138274963,-1173.75,0.00027671,2]
[311452258,1705138274973,-500.0,0.00027671,2]
[311452259,1705138274983,-501.10336645,0.00027671,2]
[311452260,1705138274994,-500.0,0.00027671,2]
[311452261,1705138275004,-500.0,0.00027671,2]
[311452262,1705138275014,-500.0,0.00027671,2]
[311452263,1705138275025,-500.0,0.00027671,2]
[311452264,1705138275035,-500.0,0.00027671,2]
[311452265,1705138275045,-500.0,0.00027671,2]
[311452266,1705138275055,-500.0,0.00027671,2]
[311452267,1705138275065,-500.0,0.00027671,2]
[311452268,1705138275075,-503.19546141,0.00027671,2]
[311452269,1705138275085,-872.31,0.00027671,2]
[311452270,1705138275095,-500.0,0.00027671,2]
[311452271,1705138275105,-500.0,0.00027671,2]
[311452272,1705138275115,-500.0,0.00027671,2]
[311452273,1705138275125,-500.0,0.00027671,2]
[311452274,1705138275135,-500.0,0.00027671,2]
[311452275,1705138275146,-802.05,0.00027671,2]
[311452276,1705138275156,-500.0,0.00027671,2]
[311452277,1705138275166,-500.0,0.00027671,2]
[311452278,1705138275177,-500.0,0.00027671,2]
[311452279,1705138275187,-500.0,0.00027671,2]
[311452280,1705138275197,-500.0,0.00027671,2]
[311452281,1705138275207,-899.66,0.00027671,2]
[311452282,1705138275217,-500.0,0.00027671,2]
[311452283,1705138275227,-500.0,0.00027671,2]
[311452284,1705138275237,-500.0,0.00027671,2]
[311452285,1705138275248,-1477.13,0.00027671,2]
[311452286,1705138275257,-647.72,0.00027671,2]
[311452287,1705138275268,-500.0,0.00027671,2]
[311452288,1705138275279,-502.78838797,0.00027671,2]
[311452289,1705138275290,-500.0,0.00027671,2]
[311452290,1705138275300,-500.0,0.00027671,2]
[311452291,1705138275310,-500.0,0.00027671,2]
[311452292,1705138275320,-1089.63,0.00027671,2]
[311452293,1705138275330,-1000.0,0.00027671,7]
[311452294,1705138275340,-500.0,0.00027671,2]
[311452295,1705138275349,-532.51,0.00027671,2]
[311452296,1705138275360,-500.0,0.00027671,2]
[311452297,1705138275369,-500.0,0.00027671,2]
[311452298,1705138275379,-500.0,0.00027671,2]
[311452299,1705138275390,-700.8,0.00027671,2]
[311452300,1705138275400,-500.0,0.00027671,2]
[311452301,1705138275409,-700.32,0.00027671,2]
[311452302,1705138275421,-14701.13,0.00027671,2]
[311452303,1705138275431,-637.97,0.00027671,2]
[311452304,1705138275441,-900.7,0.00027671,2]
[311452305,1705138275452,-500.0,0.00027671,2]
[311452306,1705138275462,-500.0,0.00027671,2]
[311452307,1705138275472,-500.0,0.00027671,2]
[311452308,1705138275482,-549.54,0.00027671,2]
[311452309,1705138275492,-500.0,0.00027671,2]
[311452310,1705138275502,-500.0,0.00027671,2]
[311452311,1705138275512,-500.0,0.00027671,2]
[311452312,1705138275523,-500.0,0.00027671,2]
[311452313,1705138275533,-500.0,0.00027671,2]
[311452314,1705138275543,-673.95,0.00027671,2]
[311452315,1705138275553,-500.0,0.00027671,2]
[311452316,1705138275563,-500.0,0.00027671,2]
[311452317,1705138275574,-500.0,0.00027671,2]
[311452318,1705138275584,-500.0,0.00027671,2]
[311452319,1705138275594,-662.16,0.00027671,2]
[311452320,1705138275605,-324.32341232,0.00027671,2]
[311452321,1705138275615,-686.11,0.00027671,2]
[311452322,1705138275625,-500.0,0.00027671,2]
[311452323,1705138275636,-1135.9,0.00027671,2]
[311452324,1705138275646,-500.0,0.00027671,2]
[311452325,1705138275656,-500.0,0.00027671,2]
[311452326,1705138275666,-500.0,0.00027671,2]
[311452327,1705138275676,-500.0,0.00027671,2]
[311452328,1705138275687,-500.0,0.00027671,2]
[311452329,1705138275697,-500.0,0.00027671,2]
[311452330,1705138275708,-500.0,0.00027671,2]
[311452331,1705138275718,-500.0,0.00027671,2]
[311452332,1705138275730,-500.0,0.00027671,2]
[311452333,1705138275740,-500.0,0.00027671,2]
[311452334,1705138275752,-500.0,0.00027671,2]
[311452335,1705138275988,-500.0,0.00027671,2]
[311452336,1705138276003,-500.0,0.00027671,2]
[311452337,1705138276013,-1375.91,0.00027671,2]
[311452338,1705138276024,-500.0,0.00027671,2]
[311452339,1705138276033,-500.0,0.00027671,2]
[311452340,1705138276043,-3093.64,0.00027671,2]
[311452341,1705138276053,-546.03632315,0.00027671,2]
[311452342,1705138276063,-4643.14,0.00027671,2]
[311452343,1705138276072,-4221.18,0.00027671,2]
[311452344,1705138276082,-1564.8,0.00027671,2]
[311452345,1705138276090,-500.0,0.00027671,2]
[311452346,1705138276100,-500.0,0.00027671,2]
[311452347,1705138276109,-500.0,0.00027671,2]
[311452348,1705138276118,-500.0,0.00027671,2]
[311452349,1705138276128,-500.0,0.00027671,2]
[311452350,1705138276137,-500.0,0.00027671,2]
[311452351,1705138276146,-500.0,0.00027671,2]
[311452352,1705138276156,-500.0,0.00027671,2]
[311452353,1705138276165,-500.0,0.00027671,2]
[311452354,1705138276175,-500.0,0.00027671,2]
[311452355,1705138276184,-1217.27,0.00027671,2]
[311452356,1705138276193,-941.33,0.00027671,2]
[311452357,1705138276202,-500.0,0.00027671,2]
[311452358,1705138276212,-500.0,0.00027671,2]
[311452359,1705138276221,-500.0,0.00027671,2]
[311452360,1705138276231,-518.75003996,0.00027671,2]
[311452361,1705138276240,-500.0,0.00027671,2]
[311452362,1705138276250,-500.0,0.00027671,2]
[311452363,1705138276259,-500.0,0.00027671,2]
[311452364,1705138276269,-500.0,0.00027671,2]
[311452365,1705138276278,-515.73,0.00027671,2]
[311452366,1705138276287,-500.0,0.00027671,2]
[311452367,1705138276297,-500.0,0.00027671,2]
[311452368,1705138276306,-500.0,0.00027671,2]
[311452369,1705138276316,-942.33,0.00027671,2]
[311452370,1705138276326,-500.0,0.00027671,2]
[311452371,1705138276335,-569.09170218,0.00027671,2]
[311452372,1705138276345,-500.0,0.00027671,2]
[311452373,1705138276354,-500.0,0.00027671,2]
[311452374,1705138276363,-500.0,0.00027671,2]
[311452375,1705138276373,-500.0,0.00027671,2]
[311452376,1705138276383,-771.73,0.00027671,2]
[311452377,1705138276392,-500.0,0.00027671,2]
[311452378,1705138276401,-840.4,0.00027671,2]
[311452379,1705138276410,-730.49,0.00027671,2]
[311452380,1705138276419,-500.0,0.00027671,2]
[311452381,1705138276428,-986.54,0.00027671,2]
[311452382,1705138276437,-500.0,0.00027671,2]
[311452383,1705138276446,-500.0,0.00027671,2]
[311452384,1705138276455,-500.0,0.00027671,2]
[311452385,1705138276465,-1303.9,0.00027671,2]
[311452386,1705138276475,-500.0,0.00027671,2]
[311452387,1705138276484,-500.0,0.00027671,2]
[311452388,1705138276493,-500.0,0.00027671,2]
[311452389,1705138276503,-500.0,0.00027671,2]
[311452390,1705138276513,-500.0,0.00027671,2]
[311452391,1705138276522,-500.0,0.00027671,2]
[311452392,1705138276531,-500.0,0.00027671,2]
[311452393,1705138276540,-500.0,0.00027671,2]
[311452394,1705138276550,-500.0,0.00027671,2]
[311452395,1705138276559,-500.0,0.00027671,2]
[311452396,1705138276568,-500.0,0.00027671,2]
[311452397,1705138276578,-500.0,0.00027671,2]
[311452398,1705138276588,-649.81,0.00027671,2]
[311452399,1705138276597,-500.0,0.00027671,2]
[311452400,1705138276606,-500.0,0.00027671,2]
[311452401,1705138276615,-500.0,0.00027671,2]
[311452402,1705138276625,-500.0,0.00027671,2]
[311452403,1705138276634,-500.0,0.00027671,2]
[311452404,1705138276643,-586.86,0.00027671,2]
[311452405,1705138276652,-500.0,0.00027671,2]
[311452406,1705138276661,-503.71624934,0.00027671,2]
[311452407,1705138276671,-559.73,0.00027671,2]
[311452408,1705138276680,-500.0,0.00027671,2]
[311452409,1705138276690,-500.0,0.00027671,2]
[311452410,1705138276699,-500.0,0.00027671,2]
[311452411,1705138276708,-849.31,0.00027671,2]
[311452412,1705138276717,-500.0,0.00027671,2]
[311452413,1705138276727,-625.46,0.00027671,2]
[311452414,1705138276737,-500.0,0.00027671,2]
[311452415,1705138276750,-500.0,0.00027671,2]
[311452416,1705138276759,-8992.77,0.00027671,2]
[311452417,1705138276769,-500.0,0.00027671,2]
[311452418,1705138276778,-1884.06,0.00027671,2]
[311452419,1705138276788,-1009.72,0.00027671,2]
[311452420,1705138276797,-1633.78,0.00027671,2]
[311452421,1705138276808,-500.0,0.00027671,2]
[311452422,1705138276818,-216.97722286,0.00027671,2]
[311452423,1705138276828,-500.0,0.00027671,2]
[311452424,1705138276838,-500.0,0.00027671,2]
[311452425,1705138276848,-500.0,0.00027671,2]
[311452426,1705138276857,-500.0,0.00027671,2]
[311452427,1705138276866,-500.0,0.00027671,2]
[311452428,1705138276876,-516.95,0.00027671,2]
[311452429,1705138276885,-500.0,0.00027671,2]
[311452430,1705138276894,-500.0,0.00027671,2]
[311452431,1705138276903,-615.1,0.00027671,2]
[311452432,1705138276913,-500.0,0.00027671,2]
[311452433,1705138276922,-500.0,0.00027671,2]
[311452434,1705138276933,-500.0,0.00027671,2]
[311452435,1705138276942,-500.0,0.00027671,2]
[311452436,1705138276952,-556.48,0.00027671,2]
[311452437,1705138276962,-500.0,0.00027671,2]
[311452438,1705138276971,-500.0,0.00027671,2]
[311452439,1705138276981,-500.0,0.00027671,2]
[311452440,1705138276990,-500.0,0.00027671,2]
[311452441,1705138277000,-222.04229113,0.00027671,2]
[311452442,1705138277010,-2757.81,0.00027671,2]
[311452443,1705138277020,-500.0,0.00027671,2]
[311452444,1705138277030,-647.3,0.00027671,2]
[311452445,1705138277039,-2931.39,0.00027671,2]
[311452446,1705138277049,-500.0,0.00027671,2]
[311452447,1705138277058,-500.0,0.00027671,2]
[311452448,1705138277068,-519.80887105,0.00027671,2]
[311452449,1705138277077,-500.0,0.00027671,2]
[311452450,1705138277086,-8611.72,0.00027671,2]
[311452451,1705138277096,-500.0,0.00027671,2]
[311452452,1705138277105,-1583.3,0.00027671,2]
[311452453,1705138277114,-624.56,0.00027671,2]
[311452454,1705138277123,-500.0,0.00027671,2]
[311452455,1705138277132,-500.0,0.00027671,2]
[311452456,1705138277142,-500.0,0.00027671,2]
[311452457,1705138277151,-524.3291718,0.00027671,2]
[311452458,1705138277160,-1183.4,0.00027671,2]
[311452459,1705138277169,-500.0,0.00027671,2]
[311452460,1705138277178,-500.0,0.00027671,2]
[311452461,1705138277187,-500.0,0.00027671,2]
[311452462,1705138277197,-500.0,0.00027671,2]
[311452463,1705138277206,-640.91,0.00027671,2]
[311452464,1705138277215,-500.0,0.00027671,2]
[311452465,1705138277224,-547.42,0.00027671,2]
[311452466,1705138277235,-500.0,0.00027671,2]
[311452467,1705138277244,-500.0,0.00027671,2]
[311452468,1705138277255,-861.15,0.00027671,2]
[311452469,1705138277264,-500.0,0.00027671,2]
[311452470,1705138277274,-1248.12,0.00027671,2]
[311452471,1705138277283,-500.0,0.00027671,2]
[311452472,1705138277293,-500.0,0.00027671,2]
[311452473,1705138277303,-500.0,0.00027671,2]
[311452474,1705138277312,-500.0,0.00027671,2]
[311452475,1705138277321,-500.0,0.00027671,2]
[311452476,1705138277330,-500.0,0.00027671,2]
[311452477,1705138277339,-500.0,0.00027671,2]
[311452478,1705138277348,-500.0,0.00027671,2]
[311452479,1705138277357,-1029.76,0.00027671,2]
[311452480,1705138277367,-500.0,0.00027671,2]
[311452481,1705138277376,-687.75,0.00027671,2]
[311452482,1705138277385,-500.0,0.00027671,2]
[311452483,1705138277394,-1321.91,0.00027671,2]
[311452484,1705138277403,-500.0,0.00027671,2]
[311452485,1705138277412,-500.0,0.00027671,2]
[311452486,1705138277422,-500.0,0.00027671,2]
[311452487,1705138277430,-501.90531653,0.00027671,2]
[311452488,1705138277440,-500.0,0.00027671,2]
[311452489,1705138277449,-574.07,0.00027671,2]
[311452490,1705138277458,-512.51373194,0.00027671,2]
[311452491,1705138277467,-500.0,0.00027671,2]
[311452492,1705138277476,-500.0,0.00027671,2]
[311452493,1705138277485,-772.89,0.00027671,2]
[311452494,1705138277496,-500.0,0.00027671,2]
[311452495,1705138277505,-745.77,0.00027671,2]
[311452496,1705138277514,-500.0,0.00027671,2]
[311452497,1705138277523,-159.64384071,0.00027671,2]
[311452498,1705138277532,-505.02208704,0.00027671,2]
[311452499,1705138277541,-500.0,0.00027671,2]
[311452500,1705138277551,-860.05,0.00027671,2]
[311452501,1705138277561,-500.0,0.00027671,2]
[311452502,1705138277570,-233.97105109,0.00027671,2]
[311452503,1705138277579,-500.0,0.00027671,2]
[311452504,1705138277589,-500.0,0.00027671,2]
[311452505,1705138277598,-511.81768729,0.00027671,2]
[311452506,1705138277607,-500.0,0.00027671,2]
[311452507,1705138277616,-500.0,0.00027671,2]
[311452508,1705138277626,-500.0,0.00027671,2]
[311452509,1705138277635,-500.0,0.00027671,2]
[311452510,1705138277644,-500.0,0.00027671,2]
[311452511,1705138277653,-798.48,0.00027671,2]
[311452512,1705138277662,-500.0,0.00027671,2]
[311452513,1705138277672,-508.26414741,0.00027671,2]
[311452514,1705138277681,-921.96,0.00027671,2]
[311452515,1705138277690,-503.24074516,0.00027671,2]
[311452516,1705138277699,-500.0,0.00027671,2]
[311452517,1705138277708,-500.0,0.00027671,2]
[311452518,1705138277717,-500.0,0.00027671,2]
[311452519,1705138277727,-500.0,0.00027671,2]
[311452520,1705138277741,-1209.87,0.00027671,2]
[311452521,1705138277751,-500.0,0.00027671,2]
[311452522,1705138277760,-500.0,0.00027671,2]
[311452523,1705138277769,-500.0,0.00027671,2]
[311452524,1705138277780,-529.63491127,0.00027671,2]
[311452525,1705138277790,-590.07,0.00027671,2]
[311452526,1705138277799,-500.0,0.00027671,2]
[311452527,1705138277808,-500.0,0.00027671,2]
[311452528,1705138277820,-500.0,0.00027671,2]
[311452529,1705138277830,-512.39130834,0.00027671,2]
[311452530,1705138277840,-500.0,0.00027671,2]
[311452531,1705138277849,-500.0,0.00027671,2]
[311452532,1705138277859,-500.0,0.00027671,2]
[311452533,1705138277868,-500.0,0.00027671,2]
[311452534,1705138277877,-552.05,0.00027671,2]
[311452535,1705138277887,-500.0,0.00027671,2]
[311452536,1705138277897,-500.0,0.00027671,2]
[311452537,1705138277907,-609.37,0.00027671,2]
[311452538,1705138277916,-500.0,0.00027671,2]
[311452539,1705138277927,-500.0,0.00027671,2]
[311452540,1705138277936,-500.0,0.00027671,2]
[311452541,1705138277945,-500.0,0.00027671,2]
[311452542,1705138277954,-500.0,0.00027671,2]
[311452543,1705138277963,-2112.38,0.00027671,2]
[311452544,1705138277972,-500.0,0.00027671,2]
[311452545,1705138277981,-500.0,0.00027671,2]
[311452546,1705138277991,-2198.32,0.00027671,2]
[311452547,1705138278002,-1612.6,0.00027671,2]
[311452548,1705138278010,-500.0,0.00027671,2]
[311452549,1705138278019,-672.5,0.00027671,2]
[311452550,1705138278029,-500.0,0.00027671,2]
[311452551,1705138278038,-563.99,0.00027671,2]
[311452552,1705138278051,-500.0,0.00027671,2]
[311452553,1705138278065,-866.42,0.00027671,2]
[311452554,1705138278078,-500.0,0.00027671,2]
[311452555,1705138278090,-500.0,0.00027671,2]
[311452556,1705138278104,-500.0,0.00027671,2]
[311452557,1705138278118,-500.0,0.00027671,2]
[311452558,1705138278132,-500.0,0.00027671,2]
[311452559,1705138278145,-500.0,0.00027671,2]
[311452560,1705138278156,-1257.85,0.00027671,2]
[311452561,1705138278170,-500.0,0.00027671,2]
[311452562,1705138278185,-500.0,0.00027671,2]
[311452563,1705138278199,-500.0,0.00027671,2]
[311452564,1705138278213,-500.0,0.00027671,2]
[311452565,1705138278227,-500.0,0.00027671,2]
[311452566,1705138278243,-500.0,0.00027671,2]
[311452567,1705138278258,-500.0,0.00027671,2]
[311452568,1705138278272,-500.0,0.00027671,2]
[311452569,1705138278286,-502.38572587,0.00027671,2]
[311452570,1705138278304,-500.0,0.00027671,2]
[311452571,1705138278316,-1388.03,0.00027671,2]
[311452572,1705138278329,-500.0,0.00027671,2]
[311452573,1705138278343,-500.0,0.00027671,2]
[311452574,1705138278359,-872.85,0.00027671,2]
[311452575,1705138278370,-718.04,0.00027671,2]
[311452576,1705138278382,-500.0,0.00027671,2]
[311452577,1705138278398,-505.04402219,0.00027671,2]
[311452578,1705138278411,-342.98,0.00027726,2]
[311452579,1705138278422,-2000.0,0.00027737,2]
[311452580,1705138278437,-159.28,0.00027872,2]
[311452581,1705138278451,-854.2416517,0.00027926,2]
[311452582,1705138278466,-1046.2927124,0.00027926,2]
[311452583,1705138278479,-110903.8248992,0.00027926,2]
[311452584,1705138278493,-151.0,0.00027926,7]
[311452585,1705138278508,-500.0,0.00027935,2]
[311452586,1705138278522,-150.0,0.00027944,2]
[311452587,1705138278535,-249.749,0.00027945,7]
[311452588,1705138278548,-249.749,0.00027945,7]
[311452589,1705138278560,-151.0,0.00027945,7]
[311452590,1705138278573,-151.0,0.00027945,7]
[311452591,1705138278585,-151.0,0.00027945,7]
[311452592,1705138278597,-151.0,0.00027945,7]
[311452593,1705138278610,-238.793444,0.00027945,7]
[311452594,1705138278622,-443.222826,0.00027945,7]
[311452595,1705138278634,-443.222826,0.00027945,7]
[311452596,1705138278648,-443.222826,0.00027945,7]
[311452597,1705138278661,-443.222826,0.00027945,7]
[311452598,1705138278675,-297.542337,0.00027945,7]
[311452599,1705138278687,-297.542337,0.00027945,7]
[311452600,1705138278700,-297.542337,0.00027945,7]
[311452601,1705138278713,-297.542337,0.00027945,7]
[311452602,1705138278727,-151.0,0.00027945,7]
[311452603,1705138278741,-165.737028,0.00027945,7]
[311452604,1705138278754,-165.737028,0.00027945,7]
[311452605,1705138278767,-165.737028,0.00027945,7]
[311452606,1705138278779,-165.737028,0.00027945,7]
[311452607,1705138278792,-151.0,0.00027945,7]
[311452608,1705138278804,-151.0,0.00027945,7]
[311452609,1705138278817,-151.0,0.00027945,7]
[311452610,1705138278830,-151.0,0.00027945,7]
[311452611,1705138278842,-151.0,0.00027945,7]
[311452612,1705138278855,-151.0,0.00027945,7]
[311452613,1705138278868,-218.734669,0.00027945,7]
[311452614,1705138278881,-336.212886,0.00027945,2]
[311452615,1705138278893,-336.212886,0.00027945,2]
[311452616,1705138278905,-336.212886,0.00027945,2]
[311452617,1705138278917,-336.212886,0.00027945,2]
[311452618,1705138278930,-511.434902,0.00027945,7]
[311452619,1705138278944,-511.434902,0.00027945,7]
[311452620,1705138278957,-511.434902,0.00027945,7]
[311452621,1705138278970,-511.434902,0.00027945,7]
[311452622,1705138278982,-151.0,0.00027945,7]
[311452623,1705138278994,-293.314623,0.00027945,7]
[311452624,1705138279007,-244.368126,0.00027945,7]
[311452625,1705138279020,-1787.744531,0.00027945,7]
[311452626,1705138279034,-1787.744531,0.00027945,7]
[311452627,1705138279047,-1787.744531,0.00027945,7]
[311452628,1705138279060,-1787.744531,0.00027945,7]
[311452629,1705138279073,-506.93127141,0.00027945,2]
[311452630,1705138279085,-502.37027402,0.00027945,2]
[311452631,1705138279098,-500.89146022,0.00027945,2]
[311452632,1705138279110,-500.0,0.00027945,2]
[311452633,1705138279123,-195.98724626,0.00027945,2]
[311452634,1705138279134,-500.0,0.00027945,2]
[311452635,1705138279147,-643.57779137,0.00027945,2]